Cogmind - Beta 12 @@@ ROGUE MODE // 2023.03.04 @ 13:31:01 Player: Zntyl Result: Destroyed by D-53 Grenadier with Mini Grenade Launcher Performance ------------- Evolutions (0) 0 Regions Visited (2) 400 Robots Destroyed (16) 80 Value Destroyed (207) 207 Prototype IDs (0) 0 Alien Tech Used (0) 0 Bonus (0) 0 TOTAL SCORE: 687 Bonus ------- None Cogmind --------- Core Integrity 0/250 Matter 112/300 Energy 77/100 System Corruption 2% Temperature Cool (0) Movement Core (50) Location -10/Mines Parts ------- > --- POWER (1) -------- (None) > --- PROPULSION (2) --- VTOL Module > --- UTILITY (2) ------ Signal Interpreter > --- WEAPON (2) ------- (None) > --- INVENTORY (5) ---- VTOL Module Peak State ------------ > --- POWER ------------ Light Nuclear Core > --- PROPULSION ------- VTOL Module VTOL Module > --- UTILITY ---------- (None) > --- WEAPON ----------- Assault Rifle Light Cannon > --- INVENTORY -------- VTOL Module VTOL Module Grenade Launcher [Rating: 9] Favorites ----------- Power Light Nuclear Core Engine Light Ion Engine Power Core Light Nuclear Core Propulsion VTOL Module Wheel Wheel Flight Unit VTOL Module Utility Sensor Array Device Sensor Array Storage Small Storage Unit Processor Signal Interpreter Weapon Assault Rifle Energy Gun Small Laser Ballistic Gun Assault Rifle Ballistic Cannon Light Cannon Launcher Grenade Launcher Build | -11 -10 -10 ------- Run | Jun Mat Min Slots Evolved . | . . . Power . | . . . Propulsion . | . . . Utility . | . . . Weapon . | . . . Parts Attached 22 | 6 12 4 Power 3 | 1 2 . Engine 2 | 1 1 . Core 1 | . 1 . Reactor . | . . . Propulsion 5 | 2 2 1 Treads . | . . . Leg . | . . . Wheel 2 | 2 . . Hover . | . . . Flight 3 | . 2 1 Utility 4 | 1 3 . Device 1 | . 1 . Storage 2 | 1 1 . Processor 1 | . 1 . Hackware . | . . . Protection . | . . . Artifact . | . . . Weapon 10 | 2 5 3 Energy Gun 1 | 1 . . Energy Cannon . | . . . Ballistic Gun 4 | 1 2 1 Ballistic Cannon 2 | . 1 1 Launcher 3 | . 2 1 Special Weapon . | . . . Impact Weapon . | . . . Slashing Weapon . | . . . Piercing Weapon . | . . . Special Melee Weapon . | . . . Unidentified Prototypes . | . . . Parts Lost 7 | . 1 6 Power 2 | . 1 1 Propulsion 2 | . . 2 Utility . | . . . Weapon 3 | . . 3 Highest Loss Streak 6 | . 1 6 To Critical Strikes . | . . . Average Slot Usage (%) 77 | . 77 80 Engine 6 | . 6 11 Core 5 | . 6 . Wheel 11 | . 13 . Flight 15 | . 13 25 Device 6 | . 5 14 Storage 5 | . 6 . Processor 5 | . 3 14 Energy Gun 2 | . 2 . Ballistic Gun 8 | . 9 1 Ballistic Cannon 4 | . 4 2 Launcher 5 | . 4 11 Naked Turns . | . . . Heaviest Build 16 | 13 16 7 Greatest Support 26 | 26 26 8 Greatest Overweight (x) 3 | . 3 . Average Overweight (x) . | . . . Largest Inventory Capacity 8 | 8 8 5 Average Capacity 6 | 7 6 5 Most Carried 5 | 4 5 4 Average Carried 3 | 1 3 3 Final Capacity 8 | 8 5 5 Final Carried 4 | 2 4 1 Class Distribution -------------------- 56% | Sprinter 43% | Mutant Dominant Class ---------------- Sprinter | -10/Materials Sprinter | -10/Mines Resources | -11 -10 -10 ----------- Run | Jun Mat Min Matter Collected 383 | 183 181 19 Remotely . | . . . Salvage Created 259 | . 259 . Parts 20 | . 20 . Haulers Intercepted . | . . . Recyclers Shooed . | . . . Parts Field Recycled . | . . . Retrieved Matter . | . . . Parts Self-Destructed . | . . . Prevented . | . . . Kills | -11 -10 -10 ------- Run | Jun Mat Min Combat Hostiles Destroyed 8 | . 8 . Guns 1 | . 1 . Cannons 2 | . 2 . AOE 5 | . 5 . Classes Destroyed 6 | . 6 . Worker 2 | . 2 . Builder 2 | . 2 . Recycler 1 | . 1 . Watcher 3 | . 3 . Swarmer 6 | . 6 . Grunt 2 | . 2 . Best Kill Streak 6 | . 6 . Combat Bots Only 3 | . 3 . Max Kills in Single Turn 3 | . 3 . Gunslinging . | . . . Exploded 1 | . 1 . Melee . | . . . Uniques/NPCs Destroyed . | . . . Combat | -11 -10 -10 -------- Run | Jun Mat Min Damage Taken 742 | . 196 546 Core 261 | . 11 250 Absorbed by Shields . | . . . Core Remaining (%) 100 | 100 . . Volleys Fired 34 | . 27 7 Largest 2 | . 2 2 Hottest 65 | . 65 55 Shots Fired 43 | . 34 9 Gun 24 | . 22 2 Cannon 13 | . 7 6 Launcher 6 | . 5 1 Special . | . . . Kinetic 37 | . 29 8 Thermal . | . . . Explosive 6 | . 5 1 Electromagnetic . | . . . Robot Hit Streak 7 | . 4 7 Robot Miss Streak 4 | . 4 1 Penetration Max . | . . . Secondary Targets . | . . . Shots Hit Robots 28 | . 20 8 Core Hits 22 | . 19 3 Critical Kills . | . . . Critical Parts Destroyed . | . . . Critical Strikes 1 | . 1 . Blast 1 | . 1 . Melee Attacks . | . . . Impact . | . . . Slashing . | . . . Piercing . | . . . Sneak Attacks . | . . . Combat Hostiles . | . . . Follow-up Attacks . | . . . Damage Inflicted 826 | . 646 180 Guns 202 | . 175 27 Cannons 159 | . 71 88 Explosions 463 | . 398 65 Melee . | . . . Ramming 2 | . 2 . Kinetic 361 | . 246 115 Thermal . | . . . Explosive 463 | . 398 65 Electromagnetic . | . . . Impact . | . . . Slashing . | . . . Piercing . | . . . Highest Corruption 2 | . 2 2 Average Corruption 2 | . 2 2 Corruption Purged . | . . . Corruption Blocked . | . . . Effects 6 | . 4 2 Message Errors 2 | . 2 . Matter Fused 1 | . . 1 Heat Flow Errors 1 | . 1 . Parts Rejected 1 | . . 1 Data Loss (minor) 1 | . 1 . Overload Shots . | . . . Overflow Damage . | . . . Projectiles . | . . . Explosions . | . . . Melee . | . . . Knockbacks 2 | . 2 . Impact . | . . . Kinetic 1 | . 1 . Secondary 1 | . 1 . Self-Inflicted Damage 12 | . 12 . Shots 1 | . 1 . Rammed 1 | . 1 . Targets Rammed 1 | . 1 . Kicked . | . . . Crushed . | . . . Highest Temperature 261 | . 261 . Average Temperature 66 | . 66 . Received Heat Transfer 39 | . 39 . Siege Activations . | . . . Robots Corrupted . | . . . Combat Hostiles . | . . . Parts Fried . | . . . Impact Corruptions . | . . . Robots Melted . | . . . Combat Hostiles . | . . . Parts Melted . | . . . Heat Transferred . | . . . Parts Sabotaged . | . . . Parts Stolen . | . . . Parts Stripped . | . . . Power Chain Reactions . | . . . Missiles Intercepted . | . . . Alert | -11 -10 -10 ------- Run | Jun Mat Min Peak Influence 366 | . 366 76 Initial 76 | . . 76 Average 134 | . 158 70 Maximum Alert Level 1 | . 1 . Low Security (%) 65 | 100 56 100 Level 1 34 | . 43 . Level 2 . | . . . Level 3 . | . . . Level 4 . | . . . Level 5 . | . . . High Security . | . . . Max Security . | . . . Squads Dispatched . | . . . Investigation . | . . . Extermination . | . . . Reinforcement . | . . . Assault . | . . . Garrison . | . . . Intercept . | . . . Searches Triggered . | . . . Construction Impeded . | . . . Haulers Reinforced . | . . . Active Scanning Responses . | . . . Cargo Convoy Interrupts . | . . . Stealth | -11 -10 -10 --------- Run | Jun Mat Min Distress Signals 2 | . 2 . Communications Jammed . | . . . Distress Signals . | . . . Times Spotted 20 | . 18 2 Peak Tracking Total 4 | . 4 2 Tactical Retreats 2 | . 2 . Traps | -11 -10 -10 ------- Run | Jun Mat Min Traps Triggered 2 | . 2 . Indirectly . | . . . Trap Hack Attempts . | . . . Triggered . | . . . Disarmed . | . . . Reprogrammed . | . . . Reused . | . . . Traps Extracted . | . . . Installed . | . . . Triggered . | . . . Machines | -11 -10 -10 ---------- Run | Jun Mat Min Machines Disabled . | . . . Max in Single Turn . | . . . Machines Repaired . | . . . Machines Sabotaged . | . . . Overloaded Fab Kills . | . . . Hacking | -11 -10 -10 --------- Run | Jun Mat Min Machines Accessed 8 | . 8 . Terminals 8 | . 8 . Fabricators . | . . . Repair Stations . | . . . Recycling Units . | . . . Scanalyzers . | . . . Garrison Access . | . . . Total Hacks 21 | . 21 . Successful 8 | . 8 . Failed 13 | . 13 . Catastrophic 1 | . 1 . Database Lockouts . | . . . Manual 21 | . 21 . Terminals 21 | . 21 . Fabricators . | . . . Repair Stations . | . . . Recycling Units . | . . . Scanalyzers . | . . . Garrison Access . | . . . Terminal Hacks . | . . . Fabricator Hacks . | . . . Repair Station Hacks . | . . . Recycling Unit Hacks . | . . . Scanalyzer . | . . . Garrison Access Hacks . | . . . Unauthorized Hacks 8 | . 8 . Terminals 8 | . 8 . Botnet 7 | . 7 . Operators 1 | . 1 . Fabricators . | . . . Repair Stations . | . . . Recycling Units . | . . . Scanalyzers . | . . . Garrison Access . | . . . Data Cores Recovered . | . . . Used . | . . . Hacking Detections 8 | . 8 . Full Trace Events . | . . . Feedback Events . | . . . Feedback Blocked . | . . . Robot Schematics Acquired . | . . . Robots Built . | . . . Authchips . | . . . Time . | . . . Total Robot Build Rating . | . . . Part Schematics Acquired . | . . . Parts Built . | . . . Authchips . | . . . Time . | . . . Total Part Build Rating . | . . . Parts Repaired . | . . . Time . | . . . Parts Recycled . | . . . Recycled Matter . | . . . Retrieved Matter . | . . . Retrieved Components . | . . . Parts Scanalyzed . | . . . Part Schematics Acquired . | . . . Parts Damaged . | . . . Bothacking | -11 -10 -10 ------------ Run | Jun Mat Min Used RIF Installer . | . . . Robots Hacked . | . . . Non-combat . | . . . Combat . | . . . Robot Hacks Applied . | . . . Relay Couplers Released . | . . . Fabnet Peak Effective % . | . . . Robots Rewired . | . . . Allies Hacked . | . . . Hacks Repelled . | . . . Allies | -11 -10 -10 -------- Run | Jun Mat Min Total Allies . | . . . Largest Group . | . . . Highest-Rated Group . | . . . Highest-Rated Ally . | . . . Total Orders . | . . . Ally Attacks . | . . . Total Damage . | . . . Kills . | . . . Allies Corrupted . | . . . Allies Melted . | . . . Intel | -11 -10 -10 ------- Run | Jun Mat Min Robot Analysis Total . | . . . Derelict Logs Recovered 1 | . . 1 Drone Launches . | . . . Drone Recoveries . | . . . Exploration | -11 -10 -10 ------------- Run | Jun Mat Min Turns Passed 674 | 47 527 100 Spaces Moved 1009 | 41 798 170 Core 14 | 8 6 . Treads . | . . . Legs . | . . . Wheels 264 | 33 231 . Hover . | . . . Flight 731 | . 561 170 Fastest Speed 32 | 50 32 32 Average Speed 48 | 82 50 32 Slowest Speed 200 | 90 200 32 Overloaded Moves . | . . . Propulsion Burnouts . | . . . Robots Hopped . | . . . Cave-ins Triggered . | . . . Exploration Rate (%) 46 | 3 98 39 Regions Visited 2 Branch Regions 1 Pre-discovered Areas 1 | . . 1 Known Exits Taken 1 | . 1 . Unknown Exits Taken 1 | 1 . . Scrap Searched . | . . . Spaces Dug . | . . . Terrain Destroyed 30 | . 30 . Melee . | . . . Projectile . | . . . AOE 30 | . 30 . Terrain Rammed . | . . . Walls Destroyed . | . . . Machines Disabled . | . . . Actions | -11 -10 -10 --------- Run | Jun Mat Min Total 1159 | 54 898 207 Wait 55 | . 30 25 Move 1007 | 40 797 170 Hop . | . . . Pick Up 23 | 8 15 . Fast Attach . | . . . Attach 22 | 6 12 4 Detach 5 | . 4 1 Swap . | . . . Drop 12 | . 12 . Fire 34 | . 27 7 Melee . | . . . Ram 1 | . 1 . Kick . | . . . Crush . | . . . Escape Stasis . | . . . Rewire . | . . . Trap . | . . . Miscellaneous . | . . . Route ------- -11/Junkyard -10/Materials (discovered 4 exits: [*Mat x3] / *Min) -10/Mines History --------- Turn | Location | Event 5 | -11/Junkyard | Discovered new exit (range 15) 48 | -11/Junkyard | Entered Materials 140 | -10/Materials | Discovered new exit (range 15) 246 | -10/Materials | Discovered new exit (range 3) 502 | -10/Materials | Discovered new exit (range 13) 502 | -10/Materials | Discovered new exit (range 13) 574 | -10/Materials | Identified exit to Mines 575 | -10/Materials | Entered Mines 582 | -10/Mines | Build established: Sprinter 597 | -10/Mines | Learned location of Zion (-6) 603 | -10/Mines | Assembled infested the area 608 | -10/Mines | Assisted by a Guerilla fighting off Assembled 670 | -10/Mines | Core integrity fell below 50% 673 | -10/Mines | Core integrity fell below 20% 675 | -10/Mines | Destroyed by D-53 Grenadier with Mini Grenade Launcher Last Messages --------------- 00610_ XG-HK6(h): "I'll hold them off! Go on ahead or try to find another way!" 00617_ K-01 Serf collects debris. 00641_ Acquired 4 matter. 00642_ Acquired 1 matter. 00643_ Acquired 14 matter. 00654_ K-01 Serf collects debris. 00656_ XG-HK6(h) destroyed. 00659_ Lgt. Ion Engine destroyed. 00660_ T-07 Excavator destroyed. 00661_ Assault Rifle destroyed. 00664_ The unstable cave ceiling collapses. 00666_ K-01 Serf collects debris. 00666_ VTOL Module destroyed. 00670_ Lgt. Cannon destroyed. 00672_ Destroyed Wheel. 00673_ Grenade Launcher destroyed. 00673_ K-01 Serf destroyed. 00674_ System corrupted: Sensor Array rejected. 00674_ The unstable cave ceiling collapses. Map ----- +----------------------------------------------------+ | ?????????????????????????????????????????????????? | | ?????????????????????????????????????????????????? | | ?????????????????????????????????????????????????? | | ?????????????????????????????????????????????????? | | ?????????????????????????????????????????????????? | | ?????????????????????????????????????????????????? | | ?????????????????????????????????????????????????? | | ?????????????????????????????????????????????????? | | ?????????????????????????????????????????????????? | | ?????????????????????????????????????????????????? | | ?????????????????????????????????????????????????? | | ?????????????????????????????????????????????????? | | ?????????????????????????????????????????????????? | | ???????????????? ???????????????????????????????? | | ?????????????? ??????????????????????????????? | | ?????????????? ??????????????????????????????? | | ????????????? ?????????????????????????????? | | ????????????? #????????????????????????????? | | ???????????? ##??#####???????????????????? | | ???????????? #?# #????????????????#??? | | ???????????? ## ???????????????? #??? | | ??????????? ##?????????????? #??? | | ??????????? d d ##???????????? #??? | | ?????????? # #??????????? #???? | | ?????????? %t #?????????? ##??? | | ?????????? @ ########### #### | | ?????????? # | | ????????????# # = | | ?????????????????#### *%= ###### ### | | ????????????????????### ### #????# #???? # | | ?????????####?????????# ###### ;#???# #??????#### | | ????????## ##?#####??# ##?# ##???# #?????????? | | ????????# #?#" #### "### ###????# #?????????? | | ?????#### ### = """# ##?????# #####?????? | | ?????# " = #?????# #?????? | | ?????### ##?????##### #?????? | | ???????## ####### ##??????????# #?????? | | ????????### ##????#"# ##??###??????# #?????? | | ??????????####?????############## #????## #?????? | | ????????#??????????????????# ##### ##????? | | ??????## ????????????????# ## #????? | | ??????# ##??#####?????# #????? | | ?????# ## ##???????# ##???? | | ????? ##??????## ## ##??? | | ????? #???????#####?### ##?? | | ??????????# ##### #???????????????## #?? | | ???????????????????## #?????????####???## #?? | | ????????????????????# #????????## ##???## #?? | | ?????????????######## #????????# ##???## ##?? | | ?????????????# #????????# ##???# ### | +----------------------------------------------------+ Best States ------------- Heat Dissipation 25 Energy Generation 14 Energy Capacity 250 Matter Stores 223 Matter Capacity 300 Sight Range 16 Robot Scan Range 14 Terrain Scan Density 10 Evasion (%) 63 Item Schematics ----------------- None Robot Schematics ------------------ None Fabricated ------------ Nothing Alien Tech Used ----------------- None Achievements -------------- None Challenges ------------ None Game ------ Seed GreatHelicalFilter Manual? 0 Play Time 00:12:49 Cumulative 80.1 hours Start 2023.03.04 @ 13:20:15 End 2023.03.04 @ 13:31:01 Sessions 1 Manual Loads 0 Difficulty Rogue Special Mode None Game No. 146 Rogue 86 Adventurer 60 Explorer 0 Win Type - Total 0 Types 0/0/0/0/0/0/0/0/0 Lore% 39 Gallery% 56 Achievement% 53 Wizard Run 0 Options --------- ASCII 0 Keyboard 0 Movement Mouse Keybinds 0 Fullscreen 1 Font 18/SmallcapsGlow Map View 76x50 Tactical HUD 1 Map Filters NONE Filters NONE Steam 1 RUN: f299de36-38fb-465b-ac37-e21ae14b6ac2